fUSD/lending_fUSD_20250427
["ID","MTS","AMOUNT","RATE_DAILY","PERIOD"]
[359119010,1745716231739,-200.0,0.00019539,2]
[359119011,1745716231749,-200.0,0.00019588,2]
[359119012,1745716231759,-948.16384016,0.00019592,2]
[359119013,1745716231771,-251.83615984,0.00019592,2]
[359119014,1745716231781,-1000.0,0.00019593,2]
[359119015,1745716231800,-300.0,0.00019593,2]
[359119016,1745716231812,-1762.273,0.00019594,2]
[359119017,1745716231822,-1000.0,0.00019594,2]
[359119018,1745716231833,-5659.42,0.00019594,2]
[359119019,1745716231843,-763.62499591,0.00019594,2]
[359119020,1745716231854,-763.62499584,0.00019628,2]
[359119021,1745716231864,-763.62499584,0.00019662,2]
[359119023,1745716231874,-500.0,0.00019673,2]
[359119025,1745716231884,-552.49324049,0.00019673,2]
[359119026,1745716231894,-500.0,0.00019673,2]
[359119027,1745716231904,-207.4,0.00019681,2]
[359119028,1745716231914,-200.77638586,0.00019692,2]
[359119029,1745716231924,-202.565733,0.00019692,2]
[359119031,1745716231933,-11254.895627,0.00019692,2]
[359119033,1745716231943,-400.0,0.00019692,2]
[359119035,1745716231952,-400.0,0.00019692,2]
[359119036,1745716231962,-586.81,0.00019692,2]
[359119037,1745716231985,-400.0,0.00019692,2]
[359119038,1745716231997,-191.770373,0.00019692,2]
[359119039,1745716232008,-400.0,0.00019692,2]
[359119040,1745716232018,-400.0,0.00019692,2]
[359119041,1745716232028,-400.0,0.00019692,2]
[359119042,1745716232039,-1762.64,0.00019692,2]
[359119043,1745716232049,-421.38,0.00019692,2]
[359119044,1745716232059,-400.0,0.00019692,2]
[359119045,1745716232070,-400.0,0.00019692,2]
[359119046,1745716232080,-400.0,0.00019692,2]
[359119047,1745716232091,-543.59070105,0.00019692,2]
[359119048,1745716232101,-423.59,0.00019692,2]
[359119049,1745716232111,-400.0,0.00019692,2]
[359119050,1745716232121,-400.0,0.00019692,2]
[359119051,1745716232132,-400.0,0.00019692,2]
[359119052,1745716232142,-400.0,0.00019692,2]
[359119053,1745716232152,-400.0,0.00019692,2]
[359119054,1745716232164,-400.0,0.00019692,2]
[359119055,1745716232174,-400.0,0.00019692,2]
[359119056,1745716232184,-415.08,0.00019692,2]
[359119057,1745716232197,-468.31,0.00019692,2]
[359119058,1745716232206,-400.0,0.00019692,2]
[359119059,1745716232216,-400.0,0.00019692,2]
[359119060,1745716232226,-400.0,0.00019692,2]
[359119061,1745716232236,-400.0,0.00019692,2]
[359119062,1745716232247,-400.0,0.00019692,2]
[359119063,1745716232256,-400.0,0.00019692,2]
[359119064,1745716232266,-561.09,0.00019692,2]
[359119065,1745716232276,-400.0,0.00019692,2]
[359119066,1745716232286,-400.0,0.00019692,2]
[359119067,1745716232298,-400.0,0.00019692,2]
[359119068,1745716232308,-596.95,0.00019692,2]
[359119069,1745716232318,-400.0,0.00019692,2]
[359119070,1745716232328,-400.0,0.00019692,2]
[359119071,1745716232338,-400.0,0.00019692,2]
[359119072,1745716232347,-400.0,0.00019692,2]
[359119073,1745716232358,-400.0,0.00019692,2]
[359119074,1745716232368,-400.0,0.00019692,2]
[359119075,1745716232378,-400.0,0.00019692,2]
[359119076,1745716232388,-413.83,0.00019692,2]
[359119077,1745716232398,-400.0,0.00019692,2]
[359119078,1745716232413,-400.0,0.00019692,2]
[359119079,1745716232424,-468.16,0.00019692,2]
[359119080,1745716232434,-499.98,0.00019692,2]
[359119081,1745716232444,-400.0,0.00019692,2]
[359119082,1745716232455,-400.0,0.00019692,2]
[359119083,1745716232465,-400.0,0.00019692,2]
[359119084,1745716232476,-4246.51,0.00019692,2]
[359119085,1745716232487,-400.0,0.00019692,2]
[359119086,1745716232497,-400.0,0.00019692,2]
[359119087,1745716232509,-400.0,0.00019692,2]
[359119088,1745716232519,-400.0,0.00019692,2]
[359119089,1745716232529,-361.39444952,0.00019692,2]
[359119090,1745716232544,-38.60555048,0.00019692,2]
[359119091,1745716232554,-400.0,0.00019692,2]
[359119092,1745716232564,-400.0,0.00019692,2]
[359119093,1745716232574,-353.34130478,0.00019692,2]
[359119094,1745716232590,-46.65869522,0.00019692,2]
[359119095,1745716232601,-400.0,0.00019692,2]
[359119096,1745716232611,-404.85,0.00019692,2]
[359119097,1745716232623,-400.0,0.00019692,2]
[359119098,1745716232634,-426.68,0.00019692,2]
[359119099,1745716232645,-448.67,0.00019692,2]
[359119100,1745716232655,-1498.97,0.00019692,2]
[359119101,1745716232666,-205.57497883,0.00019693,2]
[359119102,1745716232676,-400.0,0.00019693,2]
[359119103,1745716232687,-400.0,0.00019693,2]
[359119104,1745716232698,-400.0,0.00019693,2]
[359119105,1745716232708,-400.0,0.00019693,2]
[359119106,1745716232718,-517.47713136,0.00019693,2]
[359119107,1745716232729,-400.0,0.00019693,2]
[359119108,1745716232739,-400.0,0.00019693,2]
[359119109,1745716232749,-400.0,0.00019693,2]
[359119110,1745716232759,-400.0,0.00019693,2]
[359119111,1745716232770,-400.0,0.00019693,2]
[359119112,1745716232779,-400.0,0.00019693,2]
[359119113,1745716232796,-1094.47,0.00019693,2]
[359119114,1745716232811,-400.0,0.00019693,2]
[359119115,1745716232821,-400.0,0.00019693,2]
[359119116,1745716232832,-400.0,0.00019693,2]
[359119117,1745716232842,-350.49689088,0.00019693,2]
[359119118,1745716232852,-400.0,0.00019693,2]
[359119119,1745716232867,-815.61,0.00019693,2]
[359119120,1745716232879,-422.29,0.00019693,2]
[359119121,1745716232889,-400.0,0.00019693,2]
[359119122,1745716232900,-543.32,0.00019693,2]
[359119123,1745716232910,-536.01,0.00019693,2]
[359119124,1745716232920,-400.0,0.00019693,2]
[359119125,1745716232930,-400.0,0.00019693,2]
[359119126,1745716232941,-412.24,0.00019693,2]
[359119127,1745716232951,-400.0,0.00019693,2]
[359119128,1745716232961,-1227.36,0.00019693,2]
[359119129,1745716232971,-400.0,0.00019693,2]
[359119130,1745716232982,-400.0,0.00019693,2]
[359119131,1745716232992,-400.0,0.00019693,2]
[359119132,1745716233002,-400.0,0.00019693,2]
[359119133,1745716233013,-420.43,0.00019693,2]
[359119134,1745716233024,-400.0,0.00019693,2]
[359119135,1745716233034,-400.0,0.00019693,2]
[359119136,1745716233046,-400.0,0.00019693,2]
[359119137,1745716233057,-250.0,0.00019693,2]
[359119138,1745716233068,-400.0,0.00019693,2]
[359119139,1745716233080,-400.0,0.00019693,2]
[359119140,1745716233091,-400.0,0.00019693,2]
[359119141,1745716233103,-610.22,0.00019693,2]
[359119142,1745716233114,-400.0,0.00019693,2]
[359119143,1745716233125,-400.0,0.00019693,2]
[359119144,1745716233135,-400.0,0.00019693,2]
[359119145,1745716233146,-411.88,0.00019693,2]
[359119146,1745716233158,-400.0,0.00019693,2]
[359119147,1745716233169,-400.0,0.00019693,2]
[359119148,1745716233179,-400.0,0.00019693,2]
[359119149,1745716233190,-400.0,0.00019693,2]
[359119150,1745716233200,-400.0,0.00019693,2]
[359119151,1745716233211,-400.0,0.00019693,2]
[359119152,1745716233222,-439.75,0.00019693,2]
[359119153,1745716233232,-400.0,0.00019693,2]
[359119154,1745716233242,-400.0,0.00019693,2]
[359119155,1745716233252,-400.0,0.00019693,2]
[359119156,1745716233262,-400.0,0.00019693,2]
[359119157,1745716233273,-445.5,0.00019693,2]
[359119158,1745716233284,-400.0,0.00019693,2]
[359119159,1745716233295,-400.0,0.00019693,2]
[359119160,1745716233310,-2459.73,0.00019693,2]
[359119161,1745716233322,-737.62,0.00019693,2]
[359119162,1745716233333,-452.82,0.00019693,2]
[359119163,1745716233344,-400.0,0.00019693,2]
[359119164,1745716233354,-400.0,0.00019693,2]
[359119165,1745716233366,-400.0,0.00019693,2]
[359119166,1745716233377,-427.55,0.00019693,2]
[359119167,1745716233388,-738.58,0.00019693,2]
[359119168,1745716233399,-400.0,0.00019693,2]
[359119169,1745716233411,-672.68,0.00019693,2]
[359119170,1745716233421,-549.66,0.00019693,2]
[359119171,1745716233432,-400.0,0.00019693,2]
[359119172,1745716233445,-400.0,0.00019693,2]
[359119173,1745716233455,-400.0,0.00019693,2]
[359119174,1745716233466,-400.0,0.00019693,2]
[359119175,1745716233477,-400.0,0.00019693,2]
[359119176,1745716233488,-400.0,0.00019693,2]
[359119177,1745716233499,-400.0,0.00019693,2]
[359119178,1745716233510,-512.75,0.00019693,2]
[359119179,1745716233521,-400.0,0.00019693,2]
[359119180,1745716233531,-510.11,0.00019693,2]
[359119181,1745716233542,-469.15156182,0.00019693,2]
[359119182,1745716233553,-400.0,0.00019693,2]
[359119183,1745716233563,-400.0,0.00019693,2]
[359119184,1745716233573,-400.0,0.00019693,2]
[359119185,1745716233584,-400.0,0.00019693,2]
[359119186,1745716233594,-400.0,0.00019693,2]
[359119187,1745716233605,-400.0,0.00019693,2]
[359119188,1745716233615,-400.0,0.00019693,2]
[359119189,1745716233626,-400.0,0.00019693,2]
[359119190,1745716233636,-464.32,0.00019693,2]
[359119191,1745716233646,-572.52,0.00019693,2]
[359119192,1745716233656,-430.65,0.00019693,2]
[359119193,1745716233667,-400.0,0.00019693,2]
[359119194,1745716233677,-400.0,0.00019693,2]
[359119195,1745716233687,-400.0,0.00019693,2]
[359119196,1745716233697,-400.0,0.00019693,2]
[359119197,1745716233707,-400.0,0.00019693,2]
[359119198,1745716233717,-400.0,0.00019693,2]
[359119199,1745716233727,-400.0,0.00019693,2]
[359119200,1745716233748,-400.0,0.00019693,2]
[359119201,1745716233760,-445.72,0.00019693,2]
[359119202,1745716233770,-400.0,0.00019693,2]
[359119203,1745716233782,-400.0,0.00019693,2]
[359119204,1745716233797,-400.0,0.00019693,2]
[359119205,1745716233808,-400.0,0.00019693,2]
[359119206,1745716233818,-575.9,0.00019693,2]
[359119207,1745716233830,-720.05,0.00019693,2]
[359119208,1745716233841,-400.0,0.00019693,2]
[359119209,1745716233851,-753.97,0.00019693,2]
[359119210,1745716233863,-400.0,0.00019693,2]
[359119211,1745716233874,-400.0,0.00019693,2]
[359119212,1745716233884,-400.0,0.00019693,2]
[359119213,1745716233894,-400.0,0.00019693,2]
[359119214,1745716233905,-424.47,0.00019693,2]
[359119215,1745716233916,-400.0,0.00019693,2]
[359119216,1745716233927,-483.46,0.00019693,2]
[359119217,1745716233939,-400.0,0.00019693,2]
[359119218,1745716233950,-400.0,0.00019693,2]
[359119219,1745716233961,-400.0,0.00019693,2]
[359119220,1745716233972,-532.5,0.00019693,2]
[359119221,1745716233982,-400.0,0.00019693,2]
[359119222,1745716233993,-400.0,0.00019693,2]
[359119223,1745716234004,-472.4,0.00019693,2]
[359119224,1745716234014,-400.0,0.00019693,2]
[359119225,1745716234025,-200.0,0.00019693,2]
[359119226,1745716234035,-330.54468291,0.00019693,2]
[359119227,1745716234047,-400.0,0.00019693,2]
[359119228,1745716234060,-400.0,0.00019693,2]
[359119229,1745716234071,-400.0,0.00019693,2]
[359119230,1745716234082,-400.0,0.00019693,2]
[359119231,1745716234092,-400.0,0.00019693,2]
[359119232,1745716234102,-400.0,0.00019693,2]
[359119233,1745716234113,-2793.4,0.00019693,2]
[359119234,1745716234123,-400.0,0.00019693,2]
[359119235,1745716234134,-610.77,0.00019693,2]
[359119236,1745716234145,-527.56,0.00019693,2]
[359119237,1745716234155,-448.86,0.00019693,2]
[359119238,1745716234166,-400.0,0.00019693,2]
[359119239,1745716234177,-150.0,0.00019693,2]
[359119240,1745716234192,-157.54515362,0.00019693,2]
[359119241,1745716234203,-400.0,0.00019693,2]
[359119242,1745716234214,-31738.42041418,0.00019693,2]
[359119243,1745716234233,-4790.93452644,0.00019693,2]
[359119244,1745716234246,-1624.61584271,0.00019693,2]
[359119245,1745716234269,-2005.01203449,0.00019693,2]
[359119246,1745716234282,-1879.44851879,0.00019693,2]
[359119249,1745716237623,-400.0,0.00019692,2]
[359119250,1745716237634,-400.0,0.00019692,2]
[359119251,1745716237644,-6.39930443,0.00019693,2]
[359119252,1745716237894,-393.60069557,0.00019693,2]
[359119253,1745716237904,-632.77,0.00019693,2]
[359119254,1745716237913,-57.04948443,0.00019693,2]
[359119255,1745716237926,-342.95051557,0.00019693,2]
[359119256,1745716237936,-400.0,0.00019693,2]
[359119257,1745716237945,-400.0,0.00019693,2]
[359119258,1745716237955,-424.7,0.00019693,2]
[359119259,1745716237966,-206.44948442,0.00019693,2]
[359119260,1745716237979,-193.55051558,0.00019693,2]
[359119261,1745716237989,-463.12,0.00019693,2]
[359119262,1745716237999,-285.05913442,0.00019693,2]
[359119263,1745716238013,-114.94086558,0.00019693,2]
[359119264,1745716238023,-235.34430637,0.00019693,2]
[359119265,1745716238035,-164.65569363,0.00019693,2]
[359119266,1745716238045,-400.0,0.00019693,2]
[359119268,1745716238057,-400.0,0.00019693,2]
[359119270,1745716238067,-400.0,0.00019693,2]
[359119272,1745716238077,-400.0,0.00019693,2]
[359119301,1745716238375,-400.0,0.00019693,2]
[359119303,1745716238386,-191.27754564,0.00019693,2]
[359119305,1745716238398,-208.72245436,0.00019693,2]
[359119307,1745716238407,-55.14892418,0.00019693,2]
[359119309,1745716238424,-344.85107582,0.00019693,2]
[359119311,1745716238434,-400.0,0.00019693,2]
[359119313,1745716238444,-368.40539034,0.00019693,2]
[359119316,1745716238456,-31.59460966,0.00019693,2]
[359119318,1745716238465,-431.0,0.00019693,2]
[359119320,1745716238475,-400.0,0.00019693,2]
[359119322,1745716238484,-441.25,0.00019693,2]
[359119324,1745716238494,-612.62,0.00019693,2]
[359119326,1745716238504,-660.97,0.00019693,2]
[359119328,1745716238514,-1123.47,0.00019693,2]
[359119330,1745716238523,-400.0,0.00019693,2]
[359119332,1745716238533,-400.0,0.00019693,2]
[359119334,1745716238542,-400.0,0.00019693,2]
[359119336,1745716238553,-400.0,0.00019693,2]
[359119338,1745716238563,-400.0,0.00019693,2]
[359119340,1745716238572,-400.0,0.00019693,2]
[359119342,1745716238582,-920.44,0.00019693,2]
[359119344,1745716238591,-400.0,0.00019693,2]
[359119346,1745716238601,-400.0,0.00019693,2]
[359119348,1745716238610,-400.0,0.00019693,2]
[359119350,1745716238620,-468.72,0.00019693,2]
[359119352,1745716238630,-400.0,0.00019693,2]
[359119354,1745716238640,-589.76,0.00019693,2]
[359119356,1745716238649,-446.36,0.00019693,2]
[359119358,1745716238659,-400.0,0.00019693,2]
[359119360,1745716238669,-185.5673355,0.00019693,2]
[359119362,1745716238678,-284.48666307,0.00019693,2]
[359119497,1745716240012,-471.47,0.00019692,2]
[359119499,1745716240022,-237.52333693,0.00019693,2]
[359119501,1745716240033,-699.62,0.00019693,2]
[359119503,1745716240043,-615.89,0.00019693,2]
[359119505,1745716240053,-400.0,0.00019693,2]
[359119507,1745716240063,-460.8,0.00019693,2]
[359119509,1745716240073,-543.71,0.00019693,2]
[359119511,1745716240083,-643.96,0.00019693,2]
[359119513,1745716240094,-400.0,0.00019693,2]
[359119515,1745716240104,-410.43,0.00019693,2]
[359119517,1745716240115,-461.74,0.00019693,2]
[359119519,1745716240124,-1651.51,0.00019693,2]
[359119521,1745716240135,-400.0,0.00019693,2]
[359119523,1745716240144,-414.19,0.00019693,2]
[359119525,1745716240153,-457.71026428,0.00019693,2]
[359119527,1745716240163,-1923.54,0.00019693,2]
[359119529,1745716240172,-400.0,0.00019693,2]
[359119531,1745716240182,-400.0,0.00019693,2]
[359119533,1745716240191,-400.0,0.00019693,2]
[359119535,1745716240201,-400.0,0.00019693,2]
[359119537,1745716240212,-497.57,0.00019693,2]
[359119539,1745716240221,-400.0,0.00019693,2]
[359119541,1745716240231,-400.0,0.00019693,2]
[359119543,1745716240240,-400.0,0.00019693,2]
[359119545,1745716240250,-720.66,0.00019693,2]
[359119547,1745716240261,-400.0,0.00019693,2]
[359119549,1745716240270,-479.11,0.00019693,2]
[359119551,1745716240280,-400.0,0.00019693,2]
[359119553,1745716240289,-400.0,0.00019693,2]
[359119555,1745716240300,-500.0,0.00019693,2]
[359119557,1745716240311,-547.22,0.00019693,2]
[359119560,1745716240322,-400.0,0.00019693,2]
[359119562,1745716240332,-425.0,0.00019693,2]
[359119564,1745716240342,-400.0,0.00019693,2]
[359119566,1745716240352,-400.0,0.00019693,2]
[359119568,1745716240361,-400.0,0.00019693,2]
[359119570,1745716240374,-400.0,0.00019693,2]
[359119572,1745716240383,-63345.95,0.00019693,2]
[359119574,1745716240393,-3126.54,0.00019693,2]
[359119576,1745716240403,-508.44,0.00019693,2]
[359119578,1745716240412,-458.84,0.00019693,2]
[359119580,1745716240422,-400.0,0.00019693,2]
[359119582,1745716240431,-6238.57,0.00019693,2]
[359119584,1745716240440,-400.0,0.00019693,2]
[359119586,1745716240450,-595.42,0.00019693,2]
[359119588,1745716240460,-400.0,0.00019693,2]
[359119590,1745716240470,-2357.09864441,0.00019693,2]
[359119594,1745716240496,-269.17119065,0.00019693,2]
[359119813,1745716242777,-606.41,0.00019692,2]
[359119815,1745716242787,-980.87016494,0.00019693,2]
[359119817,1745716242801,-400.0,0.00019693,2]
[359119819,1745716242812,-234.7303324,0.00019693,2]
[359120070,1745716245653,-599.241554,0.00019593,2]
[359120072,1745716245664,-562.36,0.00019692,2]
[359120074,1745716245673,-219.3196676,0.00019693,2]
[359120076,1745716245683,-400.0,0.00019693,2]
[359120078,1745716245692,-1494.61,0.00019693,2]
[359120080,1745716245702,-575.31,0.00019693,2]
[359120082,1745716245712,-400.0,0.00019693,2]
[359120084,1745716245722,-400.0,0.00019693,2]
[359120086,1745716245732,-400.0,0.00019693,2]
[359120088,1745716245741,-400.0,0.00019693,2]
[359120090,1745716245751,-400.0,0.00019693,2]
[359120092,1745716245760,-400.0,0.00019693,2]
[359120094,1745716245770,-400.0,0.00019693,2]
[359120096,1745716245780,-400.0,0.00019693,2]
[359120099,1745716245790,-400.0,0.00019693,2]
[359120101,1745716245805,-400.0,0.00019693,2]
[359120102,1745716245816,-530.31,0.00019693,2]
[359120104,1745716245825,-400.0,0.00019693,2]
[359120106,1745716245835,-400.0,0.00019693,2]
[359120109,1745716245846,-400.0,0.00019693,2]
[359120111,1745716245857,-431.24,0.00019693,2]
[359120113,1745716245867,-400.0,0.00019693,2]
[359120115,1745716245877,-400.0,0.00019693,2]
[359120117,1745716245886,-404.54,0.00019693,2]
[359120119,1745716245896,-400.0,0.00019693,2]
[359120121,1745716245907,-400.0,0.00019693,2]
[359120123,1745716245917,-74.90176258,0.00019693,2]
[359120125,1745716245933,-869.10823742,0.00019693,2]
[359120128,1745716245943,-400.0,0.00019693,2]
[359120129,1745716245952,-500.0,0.00019693,2]
[359120131,1745716245962,-400.0,0.00019693,2]
[359120133,1745716245972,-400.0,0.00019693,2]
[359120135,1745716245981,-689.9,0.00019693,2]
[359120137,1745716245990,-400.0,0.00019693,2]
[359120139,1745716245999,-500.0,0.00019693,2]
[359120141,1745716246008,-400.0,0.00019693,2]
[359120143,1745716246018,-113.92854045,0.00019693,2]
[359120145,1745716246030,-286.07145955,0.00019693,2]
[359120148,1745716246040,-421.98,0.00019693,2]
[359120150,1745716246049,-589.64,0.00019693,2]
[359120152,1745716246059,-400.0,0.00019693,2]
[359120154,1745716246070,-657.51,0.00019693,2]
[359120156,1745716246080,-400.0,0.00019693,2]
[359120158,1745716246091,-2238.4136771,0.00019694,2]
[359120162,1745716246122,-309.20075418,0.00019692,2]
[359120168,1745716246170,-90.79924582,0.00019692,2]
[359120170,1745716246180,-340.20185509,0.00019693,2]
[359120172,1745716246190,-63749.7833798,0.00019694,2]
[359120175,1745716246207,-557.31927765,0.00019694,2]
[359120255,1745716460728,187.66,0.00018725,2]
[359120256,1745716484420,198.98,0.00018725,2]
[359120257,1745716639264,166.66,0.00019262,2]
[359120258,1745716704560,1000.0,0.00018705,2]
[359120259,1745716762145,250.0,0.00017,2]
[359120260,1745716763255,300.0,0.00019,2]
[359120261,1745716820974,265.5,0.00018705,2]
[359120263,1745716843611,-200.0,0.00019543,2]
[359120264,1745716843634,-200.0,0.00019573,2]
[359120265,1745716843656,-652.25083912,0.00019592,2]
[359120266,1745716843678,-200.0,0.00019592,2]
[359120267,1745716843700,-415.1027,0.00019593,2]
[359120268,1745716843722,-160.95171233,0.00019593,2]
[359120269,1745716843746,-534.53749716,0.00019593,2]
[359120270,1745716843767,-500.0,0.00019594,2]
[359120271,1745716843790,-167.641619,0.000196,2]
[359120272,1745716843812,-534.53749708,0.00019627,2]
[359120273,1745716843833,-850.0,0.00019679,2]
[359120274,1745716843855,-300.0,0.00019679,2]
[359120275,1745716843876,-1200.0,0.00019679,2]
[359120276,1745716843898,-300.0,0.00019679,2]
[359120277,1745716843919,-1231.6323694,0.0001968,2]
[359120278,1745716843941,-761.0328267,0.0001968,2]
[359120279,1745716843964,-29278.1196756,0.0001968,2]
[359120280,1745716843986,-207.4,0.00019682,2]
[359120281,1745716844008,-522.17,0.00019683,2]
[359120282,1745716844030,-249.89,0.00019684,2]
[359120283,1745716844056,-249.89,0.00019684,2]
[359120284,1745716844080,-249.89,0.00019684,2]
[359120285,1745716844105,-522.17,0.00019684,2]
[359120286,1745716844130,-249.89,0.00019684,2]
[359120287,1745716844154,-400.0,0.00019691,2]
[359120288,1745716844176,-400.0,0.00019691,2]
[359120289,1745716844198,-400.0,0.00019691,2]
[359120290,1745716844223,-400.0,0.00019691,2]
[359120291,1745716844247,-448.8,0.00019691,2]
[359120292,1745716844271,-400.0,0.00019691,2]
[359120293,1745716844293,-400.0,0.00019691,2]
[359120294,1745716844316,-400.0,0.00019691,2]
[359120295,1745716844341,-400.0,0.00019691,2]
[359120296,1745716844363,-400.0,0.00019691,2]
[359120297,1745716844385,-400.0,0.00019691,2]
[359120298,1745716844407,-400.0,0.00019691,2]
[359120299,1745716844430,-400.0,0.00019692,2]
[359120300,1745716844468,-400.0,0.00019692,2]
[359120301,1745716844501,-400.0,0.00019692,2]
[359120302,1745716844528,-400.0,0.00019692,2]
[359120303,1745716844559,-781.62,0.00019692,2]
[359120304,1745716844592,-400.0,0.00019692,2]
[359120305,1745716844623,-400.0,0.00019692,2]
[359120306,1745716844654,-400.0,0.00019692,2]
[359120307,1745716844683,-400.0,0.00019692,2]
[359120308,1745716844708,-400.0,0.00019692,2]
[359120309,1745716844739,-400.0,0.00019692,2]
[359120310,1745716844768,-400.0,0.00019692,2]
[359120311,1745716844796,-400.0,0.00019692,2]
[359120312,1745716844826,-400.0,0.00019692,2]
[359120313,1745716844857,-400.0,0.00019692,2]
[359120314,1745716844888,-400.0,0.00019692,2]
[359120315,1745716844915,-400.0,0.00019692,2]
[359120316,1745716844946,-400.0,0.00019692,2]
[359120317,1745716844976,-400.0,0.00019692,2]
[359120318,1745716845004,-400.0,0.00019692,2]
[359120319,1745716845034,-415.80414395,0.00019692,2]
[359120320,1745716845068,-421.42,0.00019692,2]
[359120321,1745716845098,-400.0,0.00019692,2]
[359120322,1745716845127,-400.0,0.00019692,2]
[359120323,1745716845153,-400.0,0.00019692,2]
[359120324,1745716845180,-400.0,0.00019692,2]
[359120325,1745716845211,-400.0,0.00019692,2]
[359120326,1745716845239,-400.0,0.00019692,2]
[359120327,1745716845268,-706.89,0.00019692,2]
[359120328,1745716845296,-400.0,0.00019692,2]
[359120329,1745716845329,-400.0,0.00019692,2]
[359120330,1745716845357,-369.83875021,0.00019692,2]
[359120331,1745716845381,-400.0,0.00019692,2]
[359120332,1745716845407,-526.75,0.00019692,2]
[359120333,1745716845434,-400.0,0.00019692,2]
[359120334,1745716845468,-400.0,0.00019692,2]
[359120335,1745716845495,-488.85,0.00019692,2]
[359120336,1745716845523,-491.39,0.00019692,2]
[359120337,1745716845550,-400.0,0.00019692,2]
[359120338,1745716845578,-400.0,0.00019692,2]
[359120339,1745716845607,-400.0,0.00019692,2]
[359120340,1745716845633,-400.0,0.00019692,2]
[359120341,1745716845660,-400.0,0.00019692,2]
[359120342,1745716845688,-400.0,0.00019692,2]
[359120343,1745716845715,-400.0,0.00019692,2]
[359120344,1745716845742,-273.98831381,0.00019692,2]
[359120345,1745716845768,-400.0,0.00019692,2]
[359120346,1745716845794,-427.14,0.00019692,2]
[359120347,1745716845820,-400.0,0.00019692,2]
[359120348,1745716845848,-400.0,0.00019692,2]
[359120349,1745716845875,-400.0,0.00019692,2]
[359120350,1745716845902,-400.0,0.00019692,2]
[359120351,1745716845929,-400.0,0.00019692,2]
[359120352,1745716845956,-463.31,0.00019692,2]
[359120353,1745716845985,-400.0,0.00019692,2]
[359120354,1745716846013,-400.0,0.00019692,2]
[359120355,1745716846043,-400.0,0.00019692,2]
[359120356,1745716846072,-400.0,0.00019692,2]
[359120357,1745716846106,-400.0,0.00019692,2]
[359120358,1745716846136,-400.0,0.00019692,2]
[359120359,1745716846165,-400.0,0.00019692,2]
[359120360,1745716846194,-400.0,0.00019692,2]
[359120361,1745716846224,-400.0,0.00019692,2]
[359120362,1745716846252,-690.64,0.00019692,2]
[359120363,1745716846282,-400.0,0.00019692,2]
[359120364,1745716846311,-400.0,0.00019692,2]
[359120365,1745716846346,-407.01,0.00019692,2]
[359120366,1745716846375,-400.0,0.00019692,2]
[359120367,1745716846404,-407.29,0.00019692,2]
[359120368,1745716846432,-60706.53,0.00019692,2]
[359120369,1745716846462,-400.0,0.00019692,2]
[359120370,1745716846490,-400.0,0.00019692,2]